Cogmind - Beta 15 @@@ ROGUE MODE // 2025.06.04 @ 18:10:13 Player: BlobtheGreat Result: Destroyed by Shrapnel Trap Performance ------------- Evolutions (0) 0 Regions Visited (2) 400 Robots Destroyed (21) 105 Value Destroyed (580) 580 Prototype IDs (0) 0 Alien Tech Used (0) 0 Bonus (0) 0 TOTAL SCORE: 1085 Bonus ------- None Cogmind --------- Core Integrity 0/250 Matter 239/300 Energy 193/265 System Corruption 0% Temperature Cool (2) Movement Walking (190) Ox1 Location -10/Subcaves Parts ------- > --- POWER (1) -------- Improved Ion Engine > --- PROPULSION (2) --- Aluminum Leg Aluminum Leg > --- UTILITY (2) ------ Large Storage Unit Sensor Array > --- WEAPON (2) ------- Beam Cannon > --- INVENTORY (15) --- Aluminum Leg Aluminum Leg Aluminum Leg Signal Interpreter ECM Suite Light Armor Plating Small Laser Subdweller Laser Assault Rifle Datajack Mining Laser Mining Claw Peak State ------------ > --- POWER ------------ Light Nuclear Core > --- PROPULSION ------- Aluminum Leg Wheel > --- UTILITY ---------- Large Storage Unit Sensor Array > --- WEAPON ----------- Beam Cannon Mining Claw > --- INVENTORY -------- Aluminum Leg Aluminum Leg Aluminum Leg Aluminum Leg Signal Interpreter ECM Suite Light Armor Plating Small Laser Assault Rifle Assault Rifle Datajack Mining Laser [Rating: 10] Favorites ----------- Power Ion Engine Engine Ion Engine Power Core Light Nuclear Core Propulsion Aluminum Leg Leg Aluminum Leg Wheel Wheel Utility Large Storage Unit Device Sensor Array Storage Large Storage Unit Protection Light Armor Plating Weapon Assault Rifle Energy Gun Small Laser Energy Cannon Beam Cannon Ballistic Gun Assault Rifle Ballistic Cannon Light Cannon Slashing Weapon Mining Claw Build | -11 -10 -10 ------- Run | Yrd Mat Sub Slots Evolved . | . . . Power . | . . . Propulsion . | . . . Utility . | . . . Weapon . | . . . Parts Attached 25 | 7 10 8 Power 4 | 1 . 3 Engine 3 | 1 . 2 Core 1 | . . 1 Reactor . | . . . Propulsion 6 | 2 3 1 Treads . | . . . Leg 5 | 2 2 1 Wheel 1 | . 1 . Hover . | . . . Flight . | . . . Utility 7 | 2 3 2 Device 3 | 1 2 . Storage 2 | 1 1 . Processor . | . . . Hackware . | . . . Protection 2 | . . 2 Artifact . | . . . Weapon 8 | 2 4 2 Energy Gun 3 | . 3 . Energy Cannon 1 | . . 1 Ballistic Gun 2 | 2 . . Ballistic Cannon 1 | . 1 . Launcher . | . . . Special Weapon . | . . . Impact Weapon . | . . . Slashing Weapon 1 | . . 1 Piercing Weapon . | . . . Special Melee Weapon . | . . . Unidentified Prototypes . | . . . Parts Lost 7 | . . 7 Power 3 | . . 3 Propulsion 1 | . . 1 Utility 1 | . . 1 Weapon 2 | . . 2 Highest Loss Streak 3 | . . 3 To Critical Strikes . | . . . Average Backups 11 | 4 11 13 Power 1 | . 1 1 Propulsion 3 | 2 3 3 Utility 2 | . 2 3 Weapon 3 | . 2 4 Tool/Special . | . . . Unused Backups 13 | . 7 6 Power 1 | . 1 . Propulsion 5 | . 3 2 Utility 3 | . 2 1 Weapon 3 | . 1 2 Tool/Special 1 | . . 1 Average Slot Usage (%) 99 | . 99 99 Engine 11 | . 13 9 Core 1 | . . 4 Leg 16 | . 18 14 Wheel 11 | . 9 13 Device 12 | . 12 12 Storage 14 | . 15 14 Energy Gun 3 | . 5 . Energy Cannon 5 | . . 13 Ballistic Gun 10 | . 13 5 Ballistic Cannon 6 | . 7 3 Slashing Weapon 2 | . . 4 Peak Build Rating 10 | 7 8 10 Average Rating 8 | 5 7 8 On Entrance 5 | . 7 8 Naked Turns . | . . . Heaviest Build 35 | 15 35 34 Greatest Support 20 | 20 20 20 Greatest Overweight (x) 3 | . 3 3 Average Overweight (x) 2 | . 1 2 Largest Inventory Capacity 15 | 8 15 15 Average Capacity 13 | 7 12 15 Most Carried 15 | 7 15 15 Average Carried 12 | 4 11 13 Final Capacity 15 | 8 15 15 Final Carried 15 | 7 15 12 Class Distribution -------------------- 100% | Mutant Dominant Class ---------------- Mutant | -10/Materials Mutant | -10/Subcaves Resources | -11 -10 -10 ----------- Run | Yrd Mat Sub Matter Collected 1033 | 246 496 291 Remotely . | . . . Salvage Created 668 | 10 493 165 Parts 49 | 3 35 11 Haulers Intercepted 1 | . 1 . Recyclers Shooed 3 | 1 2 . Parts Field Recycled . | . . . Retrieved Matter . | . . . Parts Self-Destructed 6 | . . 6 Prevented . | . . . Kills | -11 -10 -10 ------- Run | Yrd Mat Sub Combat Hostiles Destroyed 17 | . 11 6 Guns 8 | . 7 1 Cannons 9 | . 4 5 Classes Destroyed 8 | 1 5 2 Worker 1 | . 1 . Tunneler 1 | 1 . . Hauler 1 | . 1 . Watcher 1 | . 1 . Swarmer 4 | . 1 3 Grunt 10 | . 10 . Sentry 1 | . . 1 Subdweller 2 | . . 2 Best Kill Streak 4 | 1 4 3 Combat Bots Only 4 | . 4 3 Max Kills in Single Turn 2 | 1 2 1 Gunslinging . | . . . Exploded . | . . . Melee . | . . . Uniques/NPCs Destroyed . | . . . Combat | -11 -10 -10 -------- Run | Yrd Mat Sub Hostile Shots Fired 86 | . 47 39 Missed 19 | . 11 8 Hits 67 | . 36 31 Projectile 67 | . 36 31 Damage Taken 1063 | . 466 597 Core 250 | . 133 117 Absorbed by Shields . | . . . Core Remaining (%) 100 | 100 . . Volleys Fired 70 | 4 47 19 Largest 2 | 2 2 2 Hottest 90 | 40 80 90 Shots Fired 134 | 8 94 32 Gun 92 | 8 71 13 Cannon 42 | . 23 19 Launcher . | . . . Special . | . . . Kinetic 110 | 8 83 19 Thermal 24 | . 11 13 Explosive . | . . . Electromagnetic . | . . . Robot Hit Streak 10 | 2 10 10 Robot Miss Streak 4 | 1 4 3 Penetration Max . | . . . Secondary Targets 1 | . 1 . Max Gunslinging Chain 1 | . 1 . Shots Hit Robots 78 | 5 49 24 Core Hits 38 | 2 27 9 Critical Kills . | . . . Critical Parts Destroyed . | . . . Critical Strikes 2 | . 2 . Burn 1 | . 1 . Blast 1 | . 1 . Melee Attacks 10 | . . 10 Impact . | . . . Slashing 10 | . . 10 Piercing . | . . . Sneak Attacks . | . . . Combat Hostiles . | . . . Follow-up Attacks . | . . . Damage Inflicted 1126 | 61 690 375 Guns 722 | 61 526 135 Cannons 404 | . 164 240 Explosions . | . . . Melee . | . . . Ramming . | . . . Kinetic 877 | 61 617 199 Thermal 249 | . 73 176 Explosive . | . . . Electromagnetic . | . . . Impact . | . . . Slashing . | . . . Piercing . | . . . Highest Corruption . | . . . Average Corruption . | . . . Corruption Purged . | . . . Corruption Blocked . | . . . Overload Shots . | . . . Overflow Damage . | . . . Projectiles . | . . . Explosions . | . . . Melee . | . . . Knockbacks 1 | . . 1 Impact . | . . . Kinetic 1 | . . 1 Secondary . | . . . Self-Inflicted Damage . | . . . Shots . | . . . Rammed . | . . . Targets Rammed . | . . . Kicked . | . . . Crushed . | . . . Highest Temperature 48 | . 48 . Average Temperature 14 | . 14 . Received Heat Transfer 288 | . 216 72 Siege Activations . | . . . Martial Activations . | . . . Shielding Activations . | . . . Robots Disrupted . | . . . Combat Hostiles . | . . . Robots Corrupted . | . . . Combat Hostiles . | . . . Parts Fried . | . . . Impact Corruptions . | . . . Robots Melted . | . . . Combat Hostiles . | . . . Parts Melted 1 | . . 1 Heat Transferred 642 | . 272 370 Parts Sabotaged . | . . . Parts Stolen . | . . . Parts Stripped . | . . . Power Chain Reactions . | . . . Alert | -11 -10 -10 ------- Run | Yrd Mat Sub Maximum Alert Level . | . . . Low Security (%) 100 | 100 100 . Level 1 . | . . . Level 2 . | . . . Level 3 . | . . . Level 4 . | . . . Level 5 . | . . . High Security . | . . . Max Security . | . . . Peak Influence 114 | 5 114 . Initial . | . . . Average 36 | . 38 . Influence Increases 565 | 5 470 90 Destroy 0b10 Robot/C 300 | . 220 80 Destroy 0b10 Robot/NC 20 | 5 15 . Destroy Leader 64 | . 54 10 Trap Triggered on 0b10 50 | . 50 . Successful Hack 24 | . 24 . Disable Machine 15 | . 15 . Destroy Structure 2 | . 2 . Lose Combat Pursuer 90 | . 90 . Influence Decreases 565 | 5 470 90 Time Decay 544 | 5 449 90 Purge Threat 21 | . 21 . Squads Dispatched 1 | . 1 . Investigation . | . . . Extermination . | . . . Reinforcement 1 | . 1 . Assault . | . . . Garrison . | . . . Intercept . | . . . Searches Triggered . | . . . Construction Impeded . | . . . Haulers Reinforced . | . . . Active Scanning Responses . | . . . Cargo Convoy Interrupts . | . . . Stealth | -11 -10 -10 --------- Run | Yrd Mat Sub Distress Signals . | . . . Communications Jammed . | . . . Distress Signals . | . . . Times Spotted 34 | . 27 7 Peak Tracking Total 5 | . 5 3 Tactical Retreats 4 | . 4 . Traps | -11 -10 -10 ------- Run | Yrd Mat Sub Traps Triggered 7 | . 4 3 Indirectly . | . . . Trap Hack Attempts . | . . . Triggered . | . . . Disarmed . | . . . Reprogrammed 6 | . 6 . Reused 5 | . 5 . Traps Extracted . | . . . Installed . | . . . Triggered 5 | . 5 . Machines | -11 -10 -10 ---------- Run | Yrd Mat Sub Machines Disabled 1 | . 1 . Max in Single Turn 1 | . 1 . Machines Repaired . | . . . Machines Dismantled . | . . . Machines Sabotaged . | . . . Overloaded Fab Kills . | . . . Hacking | -11 -10 -10 --------- Run | Yrd Mat Sub Machines Accessed 7 | . 7 . Terminals 6 | . 6 . Fabricators . | . . . Repair Stations . | . . . Recycling Units 1 | . 1 . Scanalyzers . | . . . Garrison Access . | . . . Total Hacks 21 | . 21 . Successful 14 | . 14 . Failed 7 | . 7 . Catastrophic . | . . . Database Lockouts . | . . . Manual . | . . . Terminals 19 | . 19 . Fabricators . | . . . Repair Stations . | . . . Recycling Units 2 | . 2 . Scanalyzers . | . . . Garrison Access . | . . . Terminal Hacks 12 | . 12 . Record 1 | . 1 . Alert Level 1 | . 1 . Unreport Threat 1 | . 1 . Reprogram Traps 1 | . 1 . Dispatch Records 2 | . 2 . Maintenance Status 2 | . 2 . Transport Status 1 | . 1 . Hauler Manifests 1 | . 1 . Registered Components 1 | . 1 . Zone Layout 1 | . 1 . Fabricator Hacks . | . . . Repair Station Hacks . | . . . Recycling Unit Hacks 2 | . 2 . Report Inventory 1 | . 1 . Retrieve Components 1 | . 1 . Scanalyzer . | . . . Garrison Access Hacks . | . . . Unauthorized Hacks . | . . . Terminals . | . . . Fabricators . | . . . Repair Stations . | . . . Recycling Units . | . . . Scanalyzers . | . . . Garrison Access . | . . . Data Cores Recovered . | . . . Used . | . . . Hacking Detections 5 | . 5 . Full Trace Events . | . . . Feedback Events . | . . . Feedback Blocked . | . . . Robot Schematics Acquired . | . . . Robots Built . | . . . Authchips . | . . . Time . | . . . Total Robot Build Rating . | . . . Part Schematics Acquired . | . . . Parts Built . | . . . Authchips . | . . . Time . | . . . Total Part Build Rating . | . . . Parts Repaired . | . . . Time . | . . . Parts Recycled . | . . . Recycled Matter . | . . . Retrieved Matter . | . . . Retrieved Components 3 | . 3 . Parts Scanalyzed . | . . . Part Schematics Acquired . | . . . Parts Damaged . | . . . Bothacking | -11 -10 -10 ------------ Run | Yrd Mat Sub Used RIF Installer . | . . . Robots Hacked . | . . . Non-combat . | . . . Combat . | . . . Robot Hacks Applied . | . . . Relay Couplers Released . | . . . Fabnet Peak Effective % . | . . . Robots Rewired . | . . . Allies Hacked . | . . . Hacks Repelled . | . . . Allies | -11 -10 -10 -------- Run | Yrd Mat Sub Total Allies . | . . . Largest Group . | . . . Highest-Rated Group . | . . . Highest-Rated Ally . | . . . Total Orders . | . . . Ally Attacks . | . . . Total Damage . | . . . Kills . | . . . Allies Corrupted . | . . . Allies Melted . | . . . Intel | -11 -10 -10 ------- Run | Yrd Mat Sub Active Infowar (turns) 2846 | 47 1607 1192 Sensors 2502 | . 1310 1192 Seismic 303 | 47 256 . ECM 41 | . 41 . Robot Analysis Total . | . . . Derelict Logs Recovered 1 | . . 1 Drone Launches . | . . . Drone Recoveries . | . . . Exploration | -11 -10 -10 ------------- Run | Yrd Mat Sub Turns Passed 3233 | 112 1783 1338 Spaces Moved 1991 | 72 941 978 Core 4 | 4 . . Treads . | . . . Legs 571 | 68 499 4 Wheels 1416 | . 442 974 Hover . | . . . Flight . | . . . Fastest Speed 50 | 50 95 110 Average Speed 135 | 116 147 124 Slowest Speed 260 | 120 260 190 Overloaded Moves . | . . . Propulsion Burnouts . | . . . Robots Hopped . | . . . Potential Cave-ins . | . . . Cave-ins Triggered . | . . . Exploration Rate (%) 50 | 5 96 51 Regions Visited 2 Branch Regions 1 Pre-discovered Areas 1 | . . 1 Known Exits Taken . | . . . Unknown Exits Taken 2 | 1 1 . Scrap Searched . | . . . Spaces Dug . | . . . Terrain Destroyed . | . . . Melee . | . . . Projectile . | . . . AOE . | . . . Terrain Rammed . | . . . Walls Destroyed . | . . . Machines Disabled . | . . . Actions | -11 -10 -10 --------- Run | Yrd Mat Sub Total 2360 | 89 1232 1039 Wait 195 | . 184 11 Move 1989 | 71 940 978 Hop . | . . . Pick Up 26 | 7 17 2 Fast Attach 17 | 7 9 1 Attach 5 | . . 5 Detach . | . . . Swap 35 | . 22 13 Drop 13 | . 13 . Fire 70 | 4 47 19 Melee 10 | . . 10 Ram . | . . . Kick . | . . . Crush . | . . . Escape Stasis . | . . . Rewire . | . . . Trap . | . . . Miscellaneous . | . . . Route ------- -11/Scrapyard -10/Materials (discovered 5 exits: [*Mat x3] / [*Min] / [*Sub]) -10/Subcaves (discovered 1 exit: [*Mat]) History --------- Turn | Location | Event 3 | -11/Scrapyard | Discovered new exit (range 15) 113 | -11/Scrapyard | Entered Materials 305 | -10/Materials | Build established: Mutant 353 | -10/Materials | Discovered new exit (range 16) 496 | -10/Materials | Discovered new exit (range 14) 1214 | -10/Materials | Discovered new exit (range 7) 1284 | -10/Materials | Core integrity fell below 50% 1396 | -10/Materials | Discovered new exit (range 10) 1490 | -10/Materials | Discovered new exit (range 7) 1896 | -10/Materials | Entered Subcaves 1911 | -10/Subcaves | Shifting Twisted Machinery released Sub. Power Source 1991 | -10/Subcaves | A swath of the cavern ceiling suddenly collapsed 2089 | -10/Subcaves | A swath of the cavern ceiling suddenly collapsed 2173 | -10/Subcaves | Learned location of Zion (-7) 2173 | -10/Subcaves | Met a Zionite searching for "candidates" 2345 | -10/Subcaves | Discovered new exit (range 5) 2612 | -10/Subcaves | Learned Materials stockpile data 2823 | -10/Subcaves | Core integrity fell below 20% 2891 | -10/Subcaves | Shifting Twisted Machinery released Sub. Laser 3234 | -10/Subcaves | Destroyed by Shrapnel Trap Last Messages --------------- 02835_ Hvy. Assault Rifle fries itself beyond repair. 02836_ Beam Rifle fries itself beyond repair. 02836_ Acquired Imp. Ion Engine. 02841_ Subatomizers dissect the Lgt. Treads. Sub. Laser falls loose from the Twisted Machinery. 02974_ Acquired Sub. Laser. 03218_ Triggered Shrapnel Trap. 03218_ An expanding cloud of shrapnel blasts out in all directions. 03218_ Lgt. Nuclear Core destroyed. 03226_ Triggered Shrapnel Trap. 03226_ An expanding cloud of shrapnel blasts out in all directions. 03226_ Assault Rifle destroyed. 03226_ Wheel destroyed. 03234_ Triggered Shrapnel Trap. 03234_ An expanding cloud of shrapnel blasts out in all directions. Map ----- +----------------------------------------------------+ | ????????????????????????????????# | | ????????????????????????????????# ## | | ???????????????????????????????## ####?## | | ???????????????????????????????# ##?????? | | ???????????????????????????????# ## ##??????? | | ???????????????????????????????##### #???????? | | ?????????????????????????????????# ##??##??? | | ?????????????????????????????????## #?# ##?? | | ??????????????????????????????????# ## ##? | | ?????????????????????????????????## ## | | ????????????????????????????????## % | | ????????????????????????????????# | | ????????????????????????????????# ### ### | | ????????????????????????????????####### ##??? | | ???????????????????????############ # #???? # | | ???????????????????????# #""""" ##??????? | | ???????????????????????# " " ## ####????? | | ??????????????????????## #???# #????? | | ??????????????????????# "" #???## ##???# | | ?????????????????????## " "# ##????## #??## | | ?????????????????????#; "##"## #?????## #??# | | ?????????????????????#; " ### #??????## #?## | | ?????????????????????#; " #?# #??????## ### | | ?????????????????????#; ""##### ##?????## ## | | ?????????????????????## ## ;;#"#"##????# ## # | | ??????????????????????##^@ ###"# ###??## ###? | | ???????????????????????### #;###&"#"#?## ## | | ??????????????????????????#####"&"#"### | | ????????????????????????????##""##"#"# " | | ????????????????????????????#""####"# | | ??????????????????????????###""#"###"## "" | | ????????????????????????###""#"# #?##### ##"" | | ????????????????????????#"""###""#?????# ##" | | ????????????????????????##"" ""#"#?????## | | ?????????????????????????#########??????# | | ????????????????????????????????????????# | | ???????????????????????????????????????## | | ???????????????????????????????????????# ### | | ???????????????????????????????????????## ### | | ????????????????????????????????????????## | | ????????????????????????????????????????## | | ???????????????????????????????????????## # | | ??????????????????????????????????????## ## | | ??????????????????????????????????????# " ##? | | ??????????????????????????????????????# ###"# ### | | ?????????????????????????????????????# ?##"""# | | ?????????????????????????????????????####?#""##" " | | ??????????????????????????????????????????##""##"" | | ??????????????????????????????????????????#"###### | | ??????????????????????????????????????????#""###"" | +----------------------------------------------------+ Best States ------------- Heat Dissipation 25 Energy Generation 14 Energy Capacity 265 Matter Stores 300 Matter Capacity 300 Sight Range 16 Robot Scan Range 14 Terrain Scan Density 10 ECM Strength 1 Armor Coverage 150 Evasion (%) 55 Item Schematics ----------------- None Robot Schematics ------------------ None Fabricated ------------ Nothing Repaired ---------- Nothing Alien Tech Used ----------------- None Achievements -------------- None Challenges ------------ None Game ------ Seed CloakBlanketFlakker Manual? 0 Play Time 00:39:44 Cumulative 9.2 hours Start 2025.06.04 @ 17:32:53 End 2025.06.04 @ 18:10:13 Sessions 1 Manual Loads 0 Difficulty Rogue Special Mode None Game No. 12 Rogue 12 Adventurer 0 Explorer 0 Win Type - Total 0 Types 0/0/0/0/0/0/0/0/0/0 Lore% 14 Gallery% 13 Achievement% 14 Wizard Run 0 Options --------- Layout 1 ASCII 0 Keyboard 0 Movement Mouse Keybinds 0 Fullscreen 1 Font 24/Smallcaps Map View 50x40 Zoom Use 0% Tactical HUD 1 Map Filters NONE Filters NONE Steam 1 RUN: a7587d5d-16b4-47b5-9d17-a1a7387d8d3f